[Event "HSK IM Invitational 2022"]
[Site "Hamburg"]
[Date "2022.05.27"]
[Round "9.5"]
[White "Fischer, Daniel"]
[Black "Hommer, Jeremy"]
[Result "1-0"]
[ECO "B12"]
[WhiteElo "2367"]
[BlackElo "2152"]
[Annotator "TA"]
[PlyCount "69"]
[EventDate "2022.05.20"]
[EventType "tourn"]
[EventCountry "GER"]
[SourceTitle "playchess.com"]
[Source "ChessBase"]
[SourceQuality "1"]
[TimeControl "40/5400+30:1800+30"]

{[%evp 15,69,32,38,30,38,37,32,0,56,25,174,170,172,154,155,164,149,159,152,131,293,296,285,297,374,199,280,305,289,299,288,283,374,373,366,357,427,424,416,416,441,401,491,489,504,504,497,488,535,539,534,506,520,521,551,527]} 1. e4 {[%emt 0:00:16]} c6 {[%emt 0:00:10][%cal Bc7c6,Bc6c5][%mdl 32]} 2. d4 {[%emt 0:00:06]} d5 {[%emt 0:00:07]} 3. e5 {[%emt 0:00:05]} Bf5 {[%emt 0:00:08]} 4. Nf3 {[%emt 0:00:08]} e6 {[%emt 0:00:08]} 5. Be2 {[%emt 0:00:05]} c5 {[%emt 0:00:07]} 6. Be3 {[%emt 0:00:09]} Nd7 {[%emt 0:00:07]} 7. O-O {[%emt 0:02:43]} Ne7 {[%emt 0:00:10]} 8. c4 {[%emt 0:01:55]} dxc4 {[%emt 0:00:26]} 9. Bxc4 {[%emt 0:04:51] has lost popularity (9.Na3). B12: Caro-Kann: Advance Variation.} a6 {[%emt 0:00:34]} 10. Nc3 {[%emt 0:22:06]} Nc6 {[%emt 0:00:10] [#]} 11. Qe2 $146 {[%emt 0:09:59] White is slightly better.} ({Predecessor:} 11. Bb3 cxd4 12. Nxd4 Nxd4 13. Bxd4 Bc5 14. Bxc5 Nxc5 15. Qf3 Nxb3 16. axb3 O-O 17. Qxb7 {1-0 (29) Huschenbeth,N (2588)-Kvisla,J (2318) Chess.com INT 2017}) 11... Be7 {[%emt 0:13:17]} (11... Bg4 $11 12. Rad1 cxd4 13. Bxd4 Qc7) 12. Rfd1 {[%emt 0:12:22]} Qc7 {[%emt 0:01:32]} (12... Bg4 $11 {and Black stays safe.}) 13. d5 $1 $18 {[%emt 0:06:04][%cal Bd4d5,Bd5d6][%mdl 32]} Ncxe5 {[%emt 0:00:56]} 14. Bf4 {[%emt 0:03:05]} Nxf3+ {[%emt 0:07:38]} 15. Qxf3 {[%emt 0:00:06]} e5 {[%emt 0:13:03] [#]} 16. Bg5 $36 {[%emt 0:03:25][%mdl 2560] Keeping Black busy. White is more active.} Bxg5 {[%emt 0:02:22]} 17. Qxf5 {[%emt 0:00:54] Hoping for d6.} ({Don't do} 17. d6 Qd8 18. Qxf5 O-O $16) 17... Bf6 $2 {[%emt 0:03:18] A mistake that costs the game.} (17... Qd8 $16) 18. d6 {[%emt 0:01:56]} Qd8 {[%emt 0:02:30] [#]} 19. Nd5 $1 {[%emt 0:01:36] Black must now prevent Nc7+.} O-O {[%emt 0:04:25]} 20. Rd3 {[%emt 0:11:39]} (20. Bd3 $142 {[%csl Gd3][%cal Rf5h7]} g6 {[#]} 21. Qxd7 $3 {[%mdl 512]}) 20... b5 {[%emt 0:04:29]} (20... h6 $142 21. Rb3 b5) 21. Ne7+ $1 {[%emt 0:00:13]} ({Not} 21. Rh3 g6 22. Qxd7 bxc4 $14) 21... Bxe7 {[%emt 0:02:30]} 22. dxe7 {[%emt 0:00:05]} Qxe7 {[%emt 0:00:06] Threatens to win with ...Nf6.} 23. Rxd7 {[%emt 0:00:08]} Qf6 {[%emt 0:01:25]} 24. Qxf6 {[%emt 0:01:04]} gxf6 {[%emt 0:00:09]} 25. Be2 {[%emt 0:02:00]} Rfd8 {[%emt 0:02:55]} 26. Rad1 {[%emt 0:00:07]} Rxd7 {[%emt 0:00:06]} 27. Rxd7 {[%emt 0:00:01][%mdl 4096] Endgame KRB-KR} c4 {[%emt 0:00:45]} 28. Bh5 {[%emt 0:00:28]} Rc8 {[%emt 0:00:42]} 29. Bxf7+ {[%emt 0:01:24] White is clearly winning.} Kf8 {[%emt 0:00:29]} 30. Kf1 {[%emt 0:01:31]} b4 {[%emt 0:01:37]} 31. Ke2 {[%emt 0:00:20]} a5 {[%emt 0:00:36]} 32. Be6 {[%emt 0:02:50]} Rc6 {[%emt 0:00:16]} 33. Bd5 {[%emt 0:01:11]} Rc5 {[%emt 0:00:12]} 34. Be4 {[%emt 0:00:29]} h5 {[%emt 0:00:25]} 35. Rd5 {[%emt 0:00:30] Weighted Error Value: White=0.12 (very precise) /Black=0.45} 1-0